bitfinex-derivatives/quotes_BTCF0:USTF0_20260315
["timestamp","ask_amount","ask_price","bid_price","bid_amount"]
[1773577360688,0.041807,71747.0,71738.0,0.0014]
[1773577361089,0.041807,71747.0,71735.0,0.041814]
[1773577361386,0.041807,71747.0,71739.0,0.0014]
[1773577361587,0.041807,71747.0,71735.0,0.041814]
[1773577361774,0.041807,71747.0,71736.0,0.0014]
[1773577362179,0.041807,71747.0,71737.0,0.0014]
[1773577362388,0.041809,71745.0,71737.0,0.0014]
[1773577363489,0.041809,71744.0,71736.0,0.0014]
[1773577367096,0.041808,71746.0,71736.0,0.0014]
[1773577367496,0.041808,71745.0,71736.0,0.0014]
[1773577369100,0.0014,71759.0,71736.0,0.0014]
[1773577370708,0.0024,71759.0,71736.0,0.0014]
[1773577371206,0.041809,71744.0,71736.0,0.0014]
[1773577371900,0.041811,71740.0,71737.0,0.0014]
[1773577372101,0.04181,71742.0,71734.0,0.0014]
[1773577374209,0.0014,71751.0,71731.0,5e-08]
[1773577374598,0.041814,71736.0,71731.0,5e-08]
[1773577378500,0.0014,71744.0,71720.0,0.03014412]
[1773577378501,0.041816,71732.0,71726.0,0.0014]
[1773577378904,0.041816,71732.0,71720.0,0.07196612]
[1773577379214,0.041815,71734.0,71721.0,0.043222]
[1773577379712,0.041815,71733.0,71722.0,0.0014]
[1773577380602,0.041815,71733.0,71723.0,0.0014]
[1773577388313,0.041814,71735.0,71723.0,0.03158715]
[1773577390102,0.041814,71735.0,71724.0,0.03022096]
[1773577393304,0.041815,71734.0,71724.0,0.03022096]
[1773577394114,0.041815,71733.0,71724.0,0.03022096]
[1773577394315,0.041815,71733.0,71723.0,0.0014]
[1773577400512,0.04182,71725.0,71723.0,0.0014]
[1773577400822,0.041819,71726.0,71720.0,0.00010121]
[1773577401622,0.04182,71725.0,71718.0,0.0014]
[1773577402716,0.00010121,71724.0,71718.0,0.0014]
[1773577402924,0.00010121,71724.0,71718.0,0.03169546]
[1773577404014,0.00010121,71724.0,71718.0,0.0014]
[1773577410932,0.04192121,71724.0,71718.0,0.0014]
[1773577412323,0.041821,71722.0,71718.0,0.0014]
[1773577412531,0.041821,71722.0,71714.0,0.03769667]
[1773577412721,0.041821,71722.0,71715.0,0.0014]
[1773577413225,0.041821,71722.0,71716.0,0.0014]
[1773577413529,0.041821,71722.0,71718.0,0.001]
[1773577414330,0.041821,71722.0,71714.0,0.03769667]
[1773577414331,0.00010121,71724.0,71714.0,0.03769667]
[1773577414631,0.00010121,71724.0,71715.0,0.0014]
[1773577414828,0.041822,71722.0,71714.0,0.03769667]
[1773577415025,0.041822,71722.0,71715.0,0.0014]
[1773577416318,0.041822,71722.0,71715.0,0.03170826]
[1773577420439,0.00010121,71724.0,71715.0,0.03170826]
[1773577421021,0.00010121,71724.0,71708.0,0.03039633]
[1773577421221,0.041824,71718.0,71710.0,0.03039633]
[1773577421417,0.041824,71718.0,71712.0,0.03039633]
[1773577422531,0.00010121,71724.0,71712.0,0.03039633]
[1773577422733,0.041809,71743.0,71711.0,0.0014]
[1773577422734,0.041809,71743.0,71718.0,0.03038683]
[1773577422917,0.041818,71729.0,71720.0,0.03038683]
[1773577423231,0.041818,71729.0,71722.0,0.03038683]
[1773577423430,0.041818,71729.0,71724.0,0.03038683]
[1773577423829,0.041818,71728.0,71724.0,0.03038683]
[1773577424232,0.041819,71727.0,71723.0,0.0014]
[1773577424531,0.0014,71742.0,71723.0,0.0014]
[1773577424730,0.0014,71742.0,71713.0,0.03038309]
[1773577424731,0.0014,71742.0,71724.0,0.0014]
[1773577424931,0.0014,71742.0,71713.0,0.03038309]
[1773577424932,0.0014,71742.0,71723.0,0.0014]
[1773577425331,0.0014,71742.0,71713.0,0.03038309]
[1773577425525,0.0014,71742.0,71712.0,0.041827]
[1773577425526,0.0014,71742.0,71715.0,0.03033558]
[1773577425720,0.0034,71742.0,71715.0,0.03033558]
[1773577425920,0.04182,71726.0,71715.0,0.03033558]
[1773577426122,0.04182,71726.0,71716.0,0.03173558]
[1773577426530,0.04182,71726.0,71717.0,0.0014]
[1773577427027,0.04182,71726.0,71718.0,0.0014]
[1773577427328,0.04182,71726.0,71718.0,0.03173402]
[1773577428125,0.041818,71728.0,71718.0,0.03173402]
[1773577430739,0.041819,71727.0,71718.0,0.03173402]
[1773577440246,0.041821,71723.0,71717.0,0.0014]
[1773577440634,0.041821,71723.0,71718.0,0.0014]
[1773577440834,0.041821,71723.0,71713.0,0.03033595]
[1773577441034,0.041821,71723.0,71719.0,0.0014]
[1773577442732,0.041821,71723.0,71713.0,0.03033595]
[1773577442935,0.041821,71723.0,71714.0,0.0014]
[1773577443346,0.041821,71723.0,71715.0,0.0014]
[1773577443737,0.041821,71723.0,71713.0,0.03033595]
[1773577443938,0.0014,71733.0,71714.0,0.0014]
[1773577444143,0.0014,71733.0,71715.0,0.0014]
[1773577444946,0.041823,71720.0,71715.0,0.0014]
[1773577452842,0.041823,71719.0,71715.0,0.0014]
[1773577464556,0.041825,71717.0,71715.0,0.0014]
[1773577465657,0.041825,71717.0,71714.0,0.0014]
[1773577466655,0.041825,71717.0,71709.0,0.03030069]
[1773577466859,0.041816,71731.0,71710.0,0.0014]
[1773577467962,0.041824,71718.0,71710.0,0.0014]
[1773577468761,0.041825,71717.0,71710.0,0.0014]
[1773577469857,0.041825,71716.0,71710.0,0.0014]
[1773577470854,0.041825,71716.0,71711.0,0.0014]
[1773577471255,0.041825,71716.0,71710.0,0.001]
[1773577471456,0.041825,71716.0,71711.0,0.0014]
[1773577471853,0.041824,71718.0,71712.0,0.0014]
[1773577475157,0.041824,71718.0,71712.0,0.03225495]
[1773577479163,0.0014,71733.0,71712.0,0.03225495]
[1773577479370,0.041818,71728.0,71717.0,0.03085432]
[1773577479568,0.02631666,71729.0,71718.0,0.03085432]
[1773577479770,0.041807,71747.0,71719.0,0.0014]
[1773577479958,0.0014,71746.0,71720.0,0.03225307]
[1773577480160,0.0014,71746.0,71722.0,0.03085307]
[1773577480462,0.041818,71729.0,71724.0,0.03085307]
[1773577480657,0.041818,71729.0,71726.0,3.6e-07]
[1773577480854,0.041818,71729.0,71725.0,0.0014]
[1773577486563,0.041816,71731.0,71725.0,0.0014]
[1773577488572,0.041817,71730.0,71725.0,0.0014]
[1773577488872,0.4592893,71756.0,71729.0,0.02447926]
[1773577489072,0.0014,71752.0,71729.0,0.02447926]
[1773577489476,0.041812,71738.0,71729.0,0.02447926]
[1773577493778,0.041811,71740.0,71729.0,0.02447926]
[1773577494575,0.041812,71739.0,71729.0,0.02447926]
[1773577502186,0.041812,71738.0,71729.0,0.02447926]
[1773577503979,0.041811,71740.0,71729.0,0.02447926]
[1773577504273,0.041811,71740.0,71729.0,0.02407514]
[1773577504683,0.041812,71739.0,71729.0,0.02407514]
[1773577505086,0.041806,71748.0,71725.0,0.0254754]
[1773577506187,0.041814,71735.0,71725.0,0.0254754]
[1773577510373,0.041818,71728.0,71715.0,0.02408089]
[1773577510578,0.041808,71745.0,71720.0,0.02408179]
[1773577510579,0.041816,71732.0,71720.0,0.02408179]
[1773577510772,0.041815,71734.0,71723.0,0.02408179]
[1773577510972,0.0014,71748.0,71727.0,0.02408179]
[1773577511276,0.041812,71739.0,71728.0,0.02548179]
[1773577513176,0.041812,71739.0,71729.0,0.02409251]
[1773577517489,0.041812,71738.0,71729.0,0.02409251]
[1773577517786,0.041812,71738.0,71728.0,0.0014]
[1773577521991,0.041816,71732.0,71720.0,0.02411199]
[1773577522189,0.041816,71732.0,71721.0,0.0014]
[1773577523292,0.041816,71732.0,71721.0,0.043222]
[1773577527396,0.041816,71732.0,71721.0,0.06747357]
[1773577532509,0.041816,71732.0,71722.0,0.0242556]
[1773577537012,0.041816,71731.0,71722.0,0.0242556]
[1773577537215,0.041816,71731.0,71716.0,0.12576241]
[1773577537216,0.041809,71744.0,71723.0,0.0014]
[1773577537404,0.041809,71744.0,71724.0,0.0014]
[1773577537706,0.041809,71744.0,71715.0,0.041825]
[1773577537906,0.041809,71744.0,71716.0,0.0014]
[1773577539003,0.041818,71728.0,71716.0,0.0014]
[1773577542014,0.041818,71728.0,71716.0,0.043225]
[1773577542313,0.041818,71728.0,71717.0,0.041824]
[1773577542608,0.041818,71728.0,71717.0,0.06614678]
[1773577545517,0.041818,71728.0,71717.0,0.02432278]
[1773577548519,0.041818,71728.0,71717.0,0.06614678]
[1773577548720,0.041818,71728.0,71717.0,0.041824]
[1773577548924,0.041818,71728.0,71718.0,0.02436879]
[1773577557121,0.0014,71740.0,71718.0,0.02446853]
[1773577557325,0.04182,71726.0,71718.0,0.02446853]
[1773577557723,0.04182,71725.0,71718.0,0.02446853]
[1773577558924,0.041819,71727.0,71718.0,0.02446853]
[1773577560029,0.0014,71739.0,71718.0,0.02437386]
[1773577560225,0.041816,71732.0,71721.0,0.02437386]
[1773577570626,0.041815,71734.0,71722.0,0.02438065]
[1773577570936,0.041815,71733.0,71722.0,0.02438065]
[1773577572435,0.041816,71732.0,71722.0,0.02438065]
[1773577575138,0.041816,71732.0,71723.0,0.0014]
[1773577575437,0.041816,71732.0,71723.0,0.02578147]
[1773577589346,0.0014,71746.0,71725.0,0.041819]
[1773577589540,0.0014,71746.0,71726.0,0.02419326]
[1773577591948,0.041813,71738.0,71726.0,0.02419326]
[1773577593350,0.041813,71738.0,71727.0,0.02420842]
[1773577595246,0.0014,71746.0,71723.0,0.0014]
[1773577595247,0.041811,71740.0,71728.0,0.02426228]
[1773577595843,0.041811,71740.0,71715.0,0.25076874]
[1773577595844,0.041811,71740.0,71730.0,0.0242588]
[1773577596445,0.03490315,71770.0,71734.0,0.0242588]
[1773577596446,0.041809,71744.0,71734.0,0.0242588]
[1773577596645,0.0014,71760.0,71734.0,0.0242588]
[1773577596841,0.0014,71759.0,71734.0,0.0242588]
[1773577597045,0.0014,71758.0,71734.0,0.0242588]
[1773577597243,0.0014,71757.0,71734.0,0.0242588]
[1773577597549,0.0014,71758.0,71735.0,0.0014]
[1773577598049,0.041809,71744.0,71735.0,0.0014]
[1773577600147,0.041809,71744.0,71735.0,0.02563302]
[1773577608752,0.45170888,71775.0,71735.0,0.02563302]
[1773577608753,0.041792,71773.0,71735.0,0.02563302]
[1773577608952,0.041804,71753.0,71741.0,0.02422891]
[1773577609456,0.041793,71772.0,71743.0,0.02422891]
[1773577609654,0.041803,71754.0,71743.0,0.02422891]
[1773577625366,0.041805,71750.0,71742.0,0.0014]
[1773577625769,0.041804,71752.0,71742.0,0.0014]
[1773577655678,0.041795,71768.0,71742.0,0.06786509]
[1773577655877,0.041795,71768.0,71743.0,0.02465509]
[1773577656889,0.042795,71768.0,71743.0,0.02465509]
[1773577657090,0.041803,71755.0,71743.0,0.02465509]
[1773577659900,0.041803,71755.0,71743.0,0.06646409]
[1773577660099,0.041803,71755.0,71744.0,0.02465622]
[1773577660603,0.041795,71768.0,71742.0,0.16845495]
[1773577660792,0.041795,71768.0,71742.0,0.0014]
[1773577661496,0.0014,71769.0,71741.0,0.16705495]
[1773577661708,0.041805,71750.0,71743.0,0.0014]
[1773577662011,0.041805,71750.0,71738.0,0.041812]
[1773577662307,0.041805,71750.0,71739.0,0.0014]
[1773577663314,0.041805,71750.0,71739.0,0.02602899]
[1773577664009,0.041806,71749.0,71739.0,0.0014]
[1773577664210,0.041806,71748.0,71739.0,0.0014]
[1773577665207,0.041806,71748.0,71737.0,0.041812]
[1773577665512,0.041806,71748.0,71740.0,0.0014]
[1773577665708,0.041805,71750.0,71737.0,0.041812]
[1773577665909,0.041805,71750.0,71741.0,0.0014]
[1773577666113,0.0014,71762.0,71733.0,0.041815]
[1773577666408,0.041808,71746.0,71734.0,0.041814]
[1773577666609,0.041808,71746.0,71734.0,0.043214]
[1773577668209,0.041808,71746.0,71735.0,0.041814]
[1773577668413,0.041808,71746.0,71736.0,0.02466067]
[1773577675416,0.041808,71746.0,71737.0,0.0014]
[1773577680920,0.041807,71748.0,71737.0,0.0014]
[1773577681306,0.041807,71747.0,71737.0,0.0014]
[1773577681916,0.041806,71749.0,71738.0,0.0246462]
[1773577682117,0.041806,71748.0,71738.0,0.0246462]
[1773577688527,0.041806,71748.0,71737.0,0.0014]
[1773577693335,0.041807,71747.0,71737.0,0.0014]
[1773577693734,0.0014,71759.0,71737.0,0.0014]
[1773577695134,0.041807,71747.0,71737.0,0.0014]
[1773577711337,0.041808,71746.0,71737.0,0.0014]
[1773577714137,0.0014,71759.0,71738.0,0.0014]
[1773577714336,0.0014,71759.0,71739.0,0.0014]
[1773577714534,0.0014,71759.0,71736.0,0.02480676]
[1773577714840,0.0014,71759.0,71738.0,0.02480738]
[1773577715031,0.041798,71763.0,71738.0,0.02480738]
[1773577715234,0.0014,71762.0,71738.0,0.02480738]
[1773577715427,0.041806,71748.0,71738.0,0.02480738]
[1773577723034,0.041807,71747.0,71738.0,0.02480738]
[1773577726244,0.041806,71749.0,71738.0,0.02480738]
[1773577726746,0.041803,71754.0,71744.0,0.02465807]
[1773577727546,0.041803,71754.0,71742.0,0.041809]
[1773577727547,0.041803,71754.0,71746.0,0.02465807]
[1773577735853,0.041804,71753.0,71746.0,0.02465807]
[1773577751774,0.0014,71765.0,71746.0,0.02465807]
[1773577753074,0.041803,71754.0,71746.0,0.02465807]
[1773577755989,0.0014,71766.0,71746.0,0.02465807]
[1773577756273,0.041793,71772.0,71746.0,0.02465807]
[1773577756476,0.0014,71771.0,71746.0,0.02465807]
[1773577756776,0.041793,71772.0,71746.0,0.02465807]
[1773577756977,0.041803,71755.0,71746.0,0.02465807]
[1773577759485,0.041801,71757.0,71746.0,0.02465807]
[1773577759681,0.041802,71756.0,71746.0,0.02465807]
[1773577760281,0.041802,71755.0,71746.0,0.02465807]
[1773577764985,0.0014,71766.0,71746.0,0.02465807]
[1773577765685,0.041802,71755.0,71746.0,0.02465807]
[1773577775093,0.041803,71754.0,71746.0,0.02465807]
[1773577775293,0.0014,71766.0,71745.0,0.0014]
[1773577775294,0.041806,71748.0,71745.0,0.0014]
[1773577775485,0.0014,71766.0,71738.0,0.16708383]
[1773577775685,0.0014,71766.0,71739.0,0.0014]
[1773577776086,0.041796,71765.0,71740.0,0.0014]
[1773577776991,0.041807,71748.0,71740.0,0.0014]
[1773577778299,0.041807,71748.0,71740.0,0.02106216]
[1773577795606,0.041807,71748.0,71740.0,0.0014]
[1773577798207,0.041807,71747.0,71740.0,0.0014]
[1773577798404,0.041802,71756.0,71735.0,0.01965133]
[1773577798603,0.043202,71756.0,71736.0,0.0014]
[1773577798811,0.04181,71742.0,71737.0,0.0014]
[1773577799810,0.04181,71742.0,71737.0,0.0024]
[1773577800292,0.043202,71756.0,71738.0,0.0014]
[1773577800293,0.041811,71740.0,71738.0,0.0014]
[1773577800498,0.041803,71754.0,71735.0,0.0014]
[1773577800695,0.041803,71754.0,71724.0,0.06151591]
[1773577800898,0.041803,71754.0,71725.0,0.02116656]
[1773577802100,0.041813,71737.0,71725.0,0.02116656]
[1773577804406,0.041813,71737.0,71725.0,0.02216656]
[1773577805116,0.041813,71737.0,71725.0,0.02116656]
[1773577805302,0.041813,71737.0,71725.0,0.02216656]
[1773577806004,0.0014,71749.0,71725.0,0.02216656]
[1773577807011,0.041814,71736.0,71725.0,0.02216656]
[1773577807512,0.041814,71736.0,71725.0,0.02116656]
[1773577808311,0.041814,71736.0,71725.0,0.02216656]
[1773577810712,0.041814,71736.0,71725.0,0.0024]
[1773577813619,0.041814,71736.0,71725.0,0.0014]
[1773577813811,0.041814,71736.0,71725.0,0.0024]
[1773577816914,0.041814,71735.0,71725.0,0.001]
[1773577817115,0.0014,71749.0,71726.0,0.0014]
[1773577817325,0.19094191,71748.0,71726.0,0.0014]
[1773577817510,0.19094191,71747.0,71727.0,0.0014]
[1773577817710,0.041814,71735.0,71727.0,0.0014]
[1773577819019,0.041815,71734.0,71727.0,0.0014]
[1773577820015,0.041815,71734.0,71727.0,0.0024]
[1773577820519,0.041815,71734.0,71727.0,0.0014]
[1773577820719,0.041815,71734.0,71727.0,0.0024]
[1773577827319,0.0014,71749.0,71727.0,0.0024]
[1773577827620,0.19100686,71748.0,71727.0,0.0024]
[1773577827818,0.19100686,71747.0,71727.0,0.0024]
[1773577828123,0.041815,71733.0,71727.0,0.0024]
[1773577829326,0.041815,71733.0,71727.0,0.0014]
[1773577843242,0.0014,71749.0,71727.0,0.0014]
[1773577843443,0.19165451,71748.0,71727.0,0.0014]
[1773577843635,0.19165451,71747.0,71727.0,0.0014]
[1773577843836,0.19165451,71746.0,71727.0,0.0014]
[1773577844142,0.041815,71733.0,71727.0,0.0014]
[1773577848238,0.041815,71733.0,71728.0,0.0014]
[1773577848436,0.041815,71733.0,71721.0,0.06157338]
[1773577848437,0.041815,71733.0,71729.0,0.0014]
[1773577848931,0.041815,71733.0,71721.0,0.06157338]
[1773577849147,0.041816,71732.0,71722.0,0.0014]
[1773577849335,0.041817,71730.0,71722.0,0.0014]
[1773577849545,0.041818,71728.0,71723.0,0.0014]
[1773577849737,0.041818,71728.0,71717.0,0.01982758]
[1773577849932,0.041818,71728.0,71723.0,0.0014]
[1773577850541,0.041818,71728.0,71724.0,0.0014]
[1773577850835,0.041818,71728.0,71725.0,0.0014]
[1773577852450,0.041818,71728.0,71725.0,0.0024]
[1773577853050,0.041818,71728.0,71725.0,0.0014]
[1773577853247,0.041818,71728.0,71717.0,0.01982758]
[1773577853445,0.041818,71728.0,71718.0,0.0014]
[1773577855253,0.041818,71728.0,71718.0,0.0024]
[1773577857251,0.041819,71727.0,71718.0,0.0024]
[1773577858358,0.041819,71727.0,71718.0,0.0014]
[1773577860855,0.041801,71757.0,71728.0,0.01979926]
[1773577861052,0.041802,71755.0,71730.0,0.01979926]
[1773577861250,0.19292383,71754.0,71731.0,0.0014]
[1773577861457,0.19152383,71753.0,71731.0,0.0014]
[1773577861763,0.19152383,71752.0,71731.0,0.0014]
[1773577861961,0.041813,71737.0,71731.0,0.0014]
[1773577862148,0.0014,71754.0,71731.0,0.0014]
[1773577862456,0.19151778,71753.0,71731.0,0.0014]
[1773577862754,0.19251778,71752.0,71731.0,0.0014]
[1773577862954,0.041813,71737.0,71731.0,0.0014]
[1773577869054,0.0014,71749.0,71731.0,0.0014]
[1773577869262,0.041812,71739.0,71731.0,0.02120422]
[1773577873453,0.0014,71751.0,71731.0,0.02120422]
[1773577873656,0.19314287,71750.0,71731.0,0.02120422]
[1773577873847,0.19314287,71749.0,71731.0,0.02120422]
[1773577874052,0.04181,71742.0,71732.0,0.01980209]
[1773577874647,0.041811,71741.0,71732.0,0.01980209]
[1773577875262,0.041802,71755.0,71732.0,0.01980209]
[1773577875563,0.19313412,71754.0,71732.0,0.01980209]
[1773577875753,0.19313412,71753.0,71732.0,0.01980209]
[1773577875948,0.19313412,71752.0,71732.0,0.01980209]
[1773577876152,0.19313412,71751.0,71732.0,0.01980209]
[1773577876355,0.19313412,71750.0,71732.0,0.01980209]
[1773577876557,0.19313412,71749.0,71732.0,0.01980209]
[1773577876750,0.19313412,71748.0,71732.0,0.01980209]
[1773577876952,0.041811,71741.0,71732.0,0.01980209]
[1773577880768,0.041811,71741.0,71731.0,0.0014]
[1773577882067,0.041811,71740.0,71731.0,0.0014]
[1773577888070,0.0014,71756.0,71731.0,0.02119531]
[1773577888368,0.041809,71744.0,71732.0,0.01979531]
[1773577888570,0.1932249,71743.0,71732.0,0.01979531]
[1773577889069,0.2350349,71743.0,71732.0,0.01979531]
[1773577889259,0.1932249,71742.0,71732.0,0.01979531]
[1773577890165,0.041809,71743.0,71733.0,0.01979559]
[1773577891171,0.04181,71742.0,71733.0,0.01979559]
[1773577892468,0.041808,71746.0,71734.0,0.01976942]
[1773577893267,0.041808,71745.0,71734.0,0.01976942]
[1773577894161,0.04181,71742.0,71731.0,0.0014]
[1773577894361,0.04181,71742.0,71731.0,0.043216]
[1773577895170,0.04181,71742.0,71731.0,0.06280546]
[1773577895360,0.041809,71744.0,71731.0,0.06280546]
[1773577898171,0.041809,71744.0,71741.0,3.3e-07]
[1773577899560,0.041809,71744.0,71742.0,0.0014]
[1773577901574,0.04181,71743.0,71742.0,0.0014]
[1773577902074,0.04181,71743.0,71741.0,0.0014]
[1773577906966,0.04181,71742.0,71741.0,0.0014]
[1773577907376,0.041811,71740.0,71727.0,0.01967456]
[1773577907577,0.041811,71740.0,71728.0,0.02107456]
[1773577907884,0.041811,71740.0,71729.0,0.06148942]
[1773577908074,0.041811,71740.0,71730.0,0.01967242]
[1773577909784,0.04181,71742.0,71730.0,0.01967242]
[1773577911981,0.04181,71742.0,71731.0,0.01971872]
[1773577914879,0.041809,71744.0,71728.0,0.0014]
[1773577915177,0.041809,71744.0,71729.0,0.019721]
[1773577915982,0.041809,71744.0,71731.0,0.041816]
[1773577916179,0.041809,71744.0,71732.0,0.01972136]
[1773577920491,0.041809,71744.0,71733.0,0.01972803]
[1773577920787,0.16465843,71772.0,71734.0,0.01972838]
[1773577920987,0.041808,71746.0,71735.0,0.01972838]
[1773577921988,0.041808,71746.0,71736.0,0.0014]
[1773577922583,0.042808,71746.0,71736.0,0.0014]
[1773577925692,0.041803,71755.0,71737.0,0.01965226]
[1773577926007,0.041803,71755.0,71736.0,0.0014]
[1773577926008,0.041802,71755.0,71745.0,0.01965226]
[1773577926298,0.041802,71755.0,71746.0,0.0014]
[1773577927190,0.041803,71754.0,71746.0,0.0014]
[1773577933213,0.041803,71754.0,71746.0,0.02092149]
[1773577934502,0.041804,71753.0,71746.0,0.0014]
[1773577942012,0.041804,71752.0,71746.0,0.0014]
[1773577945013,0.041805,71751.0,71746.0,0.0014]
[1773577945219,0.041798,71763.0,71733.0,0.01954431]
[1773577945420,0.1942682,71762.0,71734.0,0.0014]
[1773577945717,0.041809,71743.0,71735.0,0.0014]
[1773577945913,0.041809,71743.0,71736.0,0.0014]
[1773577946120,0.041809,71743.0,71727.0,0.14814718]
[1773577946330,0.041809,71743.0,71728.0,0.02094824]
[1773577947120,0.041809,71743.0,71731.0,0.041816]
[1773577952522,0.04181,71742.0,71729.0,0.06139933]
[1773577952917,0.04181,71742.0,71730.0,0.041816]
[1773577953616,0.04181,71742.0,71730.0,0.06139955]
[1773577955434,0.04181,71743.0,71731.0,0.019584]
[1773577957548,0.04181,71742.0,71731.0,0.019584]
[1773577959442,0.04181,71742.0,71731.0,0.0614]
[1773577959641,0.04181,71742.0,71732.0,0.01958293]
[1773577964044,0.041794,71769.0,71738.0,0.01957958]
[1773577964250,0.041807,71747.0,71740.0,0.01957958]
[1773577964451,0.041807,71747.0,71741.0,0.0014]
[1773577964950,0.041807,71747.0,71741.0,0.02098001]
[1773577965252,0.083617,71747.0,71741.0,0.0014]
[1773577965659,0.041809,71744.0,71742.0,0.0014]
[1773577965849,0.041809,71744.0,71743.0,0.0014]
[1773577966248,0.041809,71744.0,71737.0,0.0014]
[1773577966550,0.083619,71744.0,71738.0,0.0014]
[1773577969563,0.041809,71744.0,71738.0,0.0014]
[1773577971566,0.04181,71743.0,71738.0,0.0014]
[1773577973068,0.04181,71743.0,71739.0,0.0014]
[1773577988274,0.041809,71744.0,71739.0,0.0014]
[1773577993479,0.04181,71743.0,71739.0,0.0014]
[1773577995385,0.08362,71743.0,71740.0,0.0014]
[1773577995584,0.08362,71743.0,71741.0,0.0014]
[1773577995884,0.08362,71743.0,71742.0,0.0014]
[1773577996077,0.04181,71743.0,71742.0,0.0014]
[1773577996280,0.04181,71742.0,71741.0,0.0014]
[1773577996478,0.04181,71742.0,71738.0,0.00036067]
[1773577996679,0.04181,71742.0,71739.0,0.0014]
[1773577996979,0.04181,71742.0,71729.0,0.041817]
[1773577997185,0.041811,71740.0,71730.0,0.0014]
[1773577997685,0.04181,71739.0,71738.0,6.7e-07]
[1773577997882,0.04181,71739.0,71729.0,0.041817]
[1773577998184,0.04181,71739.0,71730.0,0.0014]
[1773577999194,0.03209759,71739.0,71730.0,0.0014]
[1773577999384,0.01632856,71739.0,71730.0,0.043216]
[1773577999687,0.00334567,71741.0,71730.0,0.043216]
[1773577999889,0.02565528,71742.0,71730.0,0.043216]
[1773578000087,0.043202,71757.0,71730.0,0.043216]
[1773578000287,0.19363244,71756.0,71730.0,0.043216]
[1773578000589,0.19363244,71755.0,71730.0,0.043216]
[1773578000785,0.19363244,71754.0,71730.0,0.043216]
[1773578001087,0.19363244,71753.0,71730.0,0.043216]
[1773578001391,0.19363244,71752.0,71730.0,0.043216]
[1773578001686,0.19363244,71751.0,71730.0,0.043216]
[1773578001887,0.19363244,71750.0,71730.0,0.043216]
[1773578002089,0.04181,71742.0,71730.0,0.043216]
[1773578003288,0.04181,71742.0,71731.0,0.01954536]
[1773578003882,0.041809,71744.0,71731.0,0.01954536]
[1773578004078,0.041809,71744.0,71734.0,0.01954596]
[1773578004282,0.041809,71743.0,71734.0,0.01954596]
[1773578027497,0.04181,71742.0,71731.0,0.041816]
[1773578027702,0.04181,71742.0,71730.0,0.0014]
[1773578028004,0.04181,71742.0,71730.0,0.043216]
[1773578030604,0.04181,71742.0,71730.0,0.06276886]
[1773578032409,0.04181,71742.0,71731.0,0.041816]
[1773578035410,0.041809,71744.0,71731.0,0.041816]
[1773578036507,0.041809,71744.0,71731.0,0.06144493]
[1773578037309,0.04181,71743.0,71731.0,0.06144493]
[1773578041712,0.04181,71743.0,71732.0,0.01967014]
[1773578041910,0.04181,71742.0,71732.0,0.01967014]
[1773578046716,0.041809,71744.0,71732.0,0.01967014]
[1773578047014,0.041809,71744.0,71733.0,0.01967349]
[1773578049517,0.00576009,71756.0,71730.0,0.0014]
[1773578049717,0.00610689,71753.0,71730.0,0.0014]
[1773578049903,0.041812,71739.0,71726.0,0.16795992]
[1773578050108,0.00610689,71747.0,71727.0,0.0014]
[1773578050414,0.00610689,71745.0,71727.0,0.0014]
[1773578051104,0.041813,71737.0,71727.0,0.0014]
[1773578052318,0.041813,71736.0,71727.0,0.0014]
[1773578056619,0.041812,71738.0,71727.0,0.0014]
[1773578056821,0.041813,71737.0,71727.0,0.0014]
[1773578057527,0.041813,71737.0,71728.0,0.0014]
[1773578058525,0.041814,71736.0,71728.0,0.0014]
[1773578061622,0.041814,71736.0,71729.0,0.0014]
[1773578063835,0.041812,71738.0,71729.0,0.0014]
[1773578064038,0.041813,71737.0,71729.0,0.0014]
[1773578065637,0.041813,71736.0,71729.0,0.0014]
[1773578068936,0.00617781,71742.0,71722.0,0.01597897]
[1773578069240,0.041815,71733.0,71723.0,0.0014]
[1773578069628,0.041814,71735.0,71723.0,0.0014]
[1773578070040,0.041815,71734.0,71723.0,0.0014]
[1773578071442,0.041814,71736.0,71723.0,0.043221]
[1773578072037,0.041814,71736.0,71728.0,0.00366]
[1773578072942,0.00366,71731.0,71728.0,0.00366]
[1773578076546,0.00366,71731.0,71717.0,0.17913786]
[1773578076747,0.00366,71731.0,71721.0,0.041822]
[1773578077149,0.041815,71733.0,71721.0,0.041822]
[1773578079148,0.041815,71733.0,71721.0,0.05753596]
[1773578081744,0.045475,71733.0,71721.0,0.05753596]
[1773578087552,0.041816,71732.0,71721.0,0.041822]
[1773578088655,0.041816,71732.0,71722.0,0.0157075]
[1773578089651,0.00366,71733.0,71722.0,0.0157075]
[1773578090160,0.045475,71733.0,71722.0,0.0157075]
[1773578091262,0.041816,71731.0,71722.0,0.0157075]
[1773578092159,0.041816,71731.0,71719.0,0.041823]
[1773578093261,0.045475,71733.0,71720.0,0.041822]
[1773578093760,0.045475,71733.0,71721.0,0.01617467]
[1773578097268,0.041816,71732.0,71721.0,0.01617467]
[1773578097464,0.00366,71733.0,71717.0,0.03699509]
[1773578097661,0.00234891,71732.0,71718.0,0.0014]
[1773578098266,0.00366,71733.0,71718.0,0.0014]
[1773578099971,0.041818,71728.0,71718.0,0.0014]
[1773578100478,0.041819,71727.0,71718.0,0.0014]
[1773578102274,0.041819,71726.0,71718.0,0.0014]
[1773578111780,0.00178834,71731.0,71718.0,0.0014]
[1773578111982,0.19106381,71730.0,71718.0,0.0014]
[1773578112286,0.00177179,71730.0,71718.0,0.0014]
[1773578112989,0.041821,71724.0,71718.0,0.0014]
[1773578116298,0.041822,71721.0,71713.0,0.0014]
[1773578116605,0.041821,71724.0,71713.0,0.0014]
[1773578117899,0.041821,71723.0,71713.0,0.0014]
[1773578118995,0.041822,71721.0,71713.0,0.0014]
[1773578119200,0.041822,71722.0,71713.0,0.0014]
[1773578119500,0.041822,71721.0,71713.0,0.0014]